bitfinex/quotes_BTCUSD_20241205
["timestamp","ask_amount","ask_price","bid_price","bid_amount"]
[1733363388020,0.07997445,98450.0,98432.0,0.09380879]
[1733363388239,0.07997445,98450.0,98434.0,0.09080879]
[1733363388494,0.07997445,98450.0,98436.0,0.003]
[1733363388744,0.07997445,98450.0,98434.0,0.09080879]
[1733363388982,0.07997445,98450.0,98437.0,0.001]
[1733363389206,0.203159,98445.0,98437.0,0.001]
[1733363390335,0.203151,98449.0,98436.0,0.121906]
[1733363390583,0.07997445,98450.0,98435.0,0.09080879]
[1733363390584,0.08097445,98450.0,98437.0,0.09080879]
[1733363390805,0.08097445,98450.0,98438.0,0.121903]
[1733363390806,0.203152,98448.0,98438.0,0.121903]
[1733363391243,0.203152,98448.0,98438.0,0.21271179]
[1733363391688,0.203152,98448.0,98438.0,0.121903]
[1733363391930,0.07997445,98450.0,98438.0,0.121903]
[1733363392199,0.20315,98449.0,98437.0,0.09080879]
[1733363392471,0.20315,98449.0,98438.0,0.09280879]
[1733363392669,0.20315,98449.0,98438.0,0.002]
[1733363392894,0.07997445,98450.0,98438.0,0.09080879]
[1733363393117,0.07997445,98450.0,98442.0,0.121898]
[1733363393339,0.07997445,98450.0,98440.0,0.09080879]
[1733363393572,0.07997445,98450.0,98439.0,0.121902]
[1733363393573,0.07997445,98450.0,98439.0,0.21271079]
[1733363393822,0.07997445,98450.0,98440.0,0.09080879]
[1733363394050,0.00017445,98450.0,98441.0,0.09080879]
[1733363394275,0.00017445,98450.0,98442.0,0.09080879]
[1733363394525,0.00017445,98450.0,98448.0,0.121891]
[1733363395010,0.00017445,98450.0,98444.0,0.21270479]
[1733363395011,0.00017445,98450.0,98445.0,0.09080879]
[1733363395251,0.00017445,98450.0,98444.0,0.21270479]
[1733363395491,0.00017445,98450.0,98443.0,0.09080879]
[1733363395733,0.00017445,98450.0,98444.0,0.09080879]
[1733363395951,0.00017445,98450.0,98445.0,0.24379]
[1733363396170,0.00017445,98450.0,98444.0,0.09080879]
[1733363396427,0.00017445,98450.0,98443.0,0.09080879]
[1733363396944,0.20315,98449.0,98443.0,0.09080879]
[1733363397189,0.00017445,98450.0,98442.0,0.005]
[1733363397428,0.00017445,98450.0,98442.0,0.002]
[1733363397910,0.00017445,98450.0,98445.0,0.005]
[1733363397911,0.2040153,98449.0,98445.0,0.005]
[1733363398159,0.0008653,98449.0,98445.0,0.004]
[1733363398602,0.0008653,98449.0,98437.0,0.15152307]
[1733363398821,0.203152,98448.0,98437.0,0.25623566]
[1733363399086,0.203152,98448.0,98442.0,0.004]
[1733363399303,0.0008653,98449.0,98442.0,0.002]
[1733363399548,0.0008653,98449.0,98438.0,0.121903]
[1733363400024,0.0008653,98449.0,98439.0,0.00135142]
[1733363400504,0.0008653,98449.0,98439.0,0.12325342]
[1733363400712,0.0008653,98449.0,98445.0,0.003]
[1733363400942,0.0008653,98449.0,98444.0,0.121896]
[1733363401195,0.0008653,98449.0,98439.0,0.12325342]
[1733363401410,0.0008653,98449.0,98439.0,0.12625342]
[1733363401630,0.203153,98448.0,98439.0,0.00135142]
[1733363401848,0.0008653,98449.0,98438.0,0.0013666]
[1733363402139,0.0008653,98449.0,98445.0,0.003]
[1733363402392,0.0008653,98449.0,98441.0,0.1219]
[1733363402654,0.0008653,98449.0,98442.0,0.00157406]
[1733363402910,0.0008653,98449.0,98444.0,0.121895]
[1733363403129,0.0008653,98449.0,98446.0,0.121894]
[1733363403403,0.0008653,98449.0,98447.0,0.00179772]
[1733363403621,0.203165,98442.0,98439.0,0.004]
[1733363403844,0.203165,98442.0,98430.0,0.09078152]
[1733363403845,0.40633,98442.0,98430.0,0.09078152]
[1733363404123,0.40633,98442.0,98426.0,0.121918]
[1733363404124,0.203165,98442.0,98426.0,0.09078152]
[1733363404340,0.203165,98442.0,98438.0,0.002]
[1733363404572,0.203165,98442.0,98435.0,0.03118393]
[1733363404573,0.02535931,98436.0,98435.0,0.0017306]
[1733363404786,0.4563489,98436.0,98435.0,0.0017306]
[1733363406870,0.4593489,98436.0,98435.0,0.0017306]
[1733363407097,0.4643489,98436.0,98435.0,0.0027306]
[1733363407320,0.4643489,98436.0,98435.0,0.0017306]
[1733363407629,0.4643489,98436.0,98435.0,0.0027306]
[1733363407907,0.4703489,98436.0,98435.0,0.0027306]
[1733363411790,0.48926239,98436.0,98435.0,0.0027306]
[1733363412048,0.02535931,98407.0,98403.0,0.09078152]
[1733363412308,0.203243,98404.0,98400.0,0.0017312]
[1733363412561,0.283941,98406.0,98400.0,0.0017312]
[1733363412776,0.203248,98402.0,98400.0,0.0017312]
[1733363413223,0.28394,98406.0,98400.0,0.0017312]
[1733363413473,0.28394,98406.0,98403.0,0.005]
[1733363413941,0.28394,98406.0,98403.0,0.01]
[1733363414175,0.48718,98406.0,98403.0,0.005]
[1733363414421,0.48718,98406.0,98400.0,0.0073131]
[1733363414422,0.203249,98401.0,98400.0,0.0073131]
[1733363414851,0.203249,98401.0,98400.0,0.0023131]
[1733363415314,0.203249,98401.0,98400.0,0.0073131]
[1733363415831,0.203241,98405.0,98400.0,0.0023131]
[1733363416055,0.001,98401.0,98400.0,0.0073131]
[1733363417052,0.001,98401.0,98400.0,0.0123131]
[1733363418451,0.001,98401.0,98400.0,0.0073131]
[1733363418681,0.002,98401.0,98400.0,0.0123131]
[1733363419560,0.02735931,98401.0,98400.0,0.0123131]
[1733363420461,0.02635931,98401.0,98400.0,0.0073131]
[1733363420699,0.02735931,98401.0,98400.0,0.0123131]
[1733363421644,0.002,98401.0,98400.0,0.0123131]
[1733363421865,0.002,98401.0,98400.0,0.0163131]
[1733363423086,0.0008656,98405.0,98401.0,0.243898]
[1733363423094,0.0008656,98405.0,98403.0,0.121947]
[1733363423385,0.0008656,98405.0,98404.0,0.25471259]
[1733363423648,0.02535931,98437.0,98427.0,0.121917]
[1733363424174,0.02535931,98437.0,98424.0,0.12192]
[1733363424175,0.02535931,98437.0,98424.0,0.09086084]
[1733363424428,0.02535931,98437.0,98423.0,0.09086084]
[1733363424687,0.203195,98428.0,98417.0,0.09086084]
[1733363424911,0.02535931,98436.0,98417.0,0.10471259]
[1733363425156,0.203202,98424.0,98416.0,0.09086084]
[1733363425391,0.203202,98424.0,98414.0,0.21279284]
[1733363425392,0.0821,98424.0,98414.0,0.21279284]
[1733363425644,0.0821,98424.0,98417.0,0.09086084]
[1733363425919,0.0821,98424.0,98412.0,0.18172169]
[1733363425920,0.08166936,98424.0,98415.0,0.09086084]
[1733363426166,0.08166936,98424.0,98416.0,0.09086084]
[1733363426416,0.02535931,98422.0,98416.0,0.001]
[1733363426639,0.203213,98419.0,98416.0,0.003]
[1733363426880,0.406426,98419.0,98416.0,0.001]
[1733363427608,0.406426,98419.0,98413.0,0.02628697]
[1733363427609,0.203223,98414.0,98413.0,0.02628697]
[1733363427852,0.203214,98418.0,98415.0,0.001]
[1733363428302,0.203214,98418.0,98402.0,0.21280884]
[1733363428547,0.406429,98418.0,98406.0,0.121942]
[1733363429019,0.203214,98418.0,98406.0,0.121942]
[1733363429291,0.203223,98414.0,98402.0,0.343746]
[1733363429538,0.203214,98418.0,98406.0,0.121943]
[1733363429760,0.203223,98414.0,98402.0,0.344746]
[1733363430000,0.02535931,98417.0,98402.0,0.02722457]
[1733363430245,0.203227,98412.0,98402.0,0.02722457]
[1733363430477,0.02535931,98417.0,98402.0,0.02722457]
[1733363430708,0.001,98418.0,98402.0,0.02722457]
[1733363430709,0.20324,98406.0,98402.0,0.02722457]
[1733363430957,0.19724,98406.0,98402.0,0.02622457]
[1733363431428,0.19724,98406.0,98400.0,0.0023131]
[1733363431884,0.19724,98406.0,98402.0,0.001]
[1733363432137,0.40048,98406.0,98402.0,0.001]
[1733363432373,0.19724,98406.0,98402.0,0.001]
[1733363432600,0.203232,98410.0,98400.0,0.02840293]
[1733363432819,0.203232,98410.0,98402.0,0.005]
[1733363432820,0.001,98406.0,98402.0,0.005]
[1733363433039,0.203242,98405.0,98402.0,0.005]
[1733363433328,0.001,98406.0,98402.0,0.005]
[1733363433572,0.0008656,98417.0,98400.0,0.0023131]
[1733363433573,0.0008656,98417.0,98400.0,0.02836902]
[1733363433806,0.0008656,98417.0,98407.0,0.121941]
[1733363434033,0.0008656,98417.0,98403.0,0.121946]
[1733363434034,0.203218,98416.0,98403.0,0.121946]
[1733363434255,0.203229,98411.0,98402.0,0.1955952]
[1733363434499,0.203243,98404.0,98402.0,0.006]
[1733363434723,0.001,98405.0,98402.0,0.006]
[1733363434969,0.284043,98404.0,98402.0,0.006]
[1733363435685,0.284043,98404.0,98402.0,0.004]
[1733363435686,0.0808,98404.0,98402.0,0.004]
[1733363436139,0.203245,98403.0,98402.0,0.004]
[1733363436384,0.0808,98404.0,98402.0,0.004]
[1733363436638,0.203229,98411.0,98402.0,0.004]
[1733363437242,0.001,98404.0,98402.0,0.01]
[1733363437694,0.001,98404.0,98402.0,0.006]
[1733363438144,0.204245,98403.0,98402.0,0.011]
[1733363438395,0.001,98403.0,98402.0,0.011]
[1733363438628,0.203229,98411.0,98400.0,0.0023131]
[1733363438864,0.203229,98411.0,98402.0,0.007]
[1733363439335,0.203245,98403.0,98402.0,0.003]
[1733363439799,0.406491,98403.0,98400.0,0.0053131]
[1733363440022,0.204245,98403.0,98402.0,0.007]
[1733363441135,0.205245,98403.0,98402.0,0.012]
[1733363441552,0.203245,98403.0,98400.0,0.0023131]
[1733363441773,0.406491,98403.0,98400.0,0.0023131]
[1733363441974,0.406491,98403.0,98402.0,0.00803673]
[1733363442446,0.51275031,98403.0,98402.0,0.00403673]
[1733363442677,0.51275031,98403.0,98400.0,0.0023131]
[1733363442934,0.51275031,98403.0,98400.0,0.0063131]
[1733363443140,0.51275031,98403.0,98400.0,0.0113131]
[1733363443354,0.02535931,98401.0,98400.0,0.0063131]
[1733363443595,0.2102719,98401.0,98400.0,0.0063131]
[1733363443819,0.22926768,98401.0,98400.0,0.0063131]
[1733363444062,0.22926768,98401.0,98400.0,0.0023131]
[1733363444272,0.22926768,98401.0,98397.0,0.0017314]
[1733363444273,0.02535931,98398.0,98397.0,0.0017314]
[1733363444490,0.22756768,98398.0,98397.0,0.0017314]
[1733363445149,0.49041774,98398.0,98397.0,0.0017314]
[1733363445408,0.42666768,98398.0,98397.0,0.0017314]
[1733363445839,0.46503781,98398.0,98397.0,0.0027314]
[1733363447896,0.43466768,98398.0,98397.0,0.0027314]
[1733363449021,0.4156719,98398.0,98397.0,0.0027314]
[1733363450102,0.16095931,98398.0,98397.0,0.0027314]
[1733363450324,0.11185931,98398.0,98397.0,0.0027314]
[1733363450751,0.2165719,98398.0,98397.0,0.0027314]
[1733363451419,0.23551731,98398.0,98397.0,0.0027314]
[1733363451834,0.2165719,98398.0,98397.0,0.0027314]
[1733363452068,0.3665719,98398.0,98397.0,0.0027314]
[1733363452275,0.4134719,98398.0,98397.0,0.0027314]
[1733363454527,0.43241798,98398.0,98397.0,0.0027314]
[1733363454731,0.30433331,98389.0,98369.0,0.09102517]
[1733363454939,0.4090459,98389.0,98368.0,0.09102517]
[1733363455163,0.4090459,98389.0,98367.0,0.09102517]
[1733363455413,0.4090459,98389.0,98361.0,0.0002]
[1733363455414,0.4090459,98389.0,98364.0,0.09102517]
[1733363455625,0.4090459,98389.0,98364.0,0.09095742]
[1733363456257,0.4090459,98389.0,98363.0,0.09095742]
[1733363456698,0.4090459,98389.0,98361.0,0.0002]
[1733363456699,0.5590459,98389.0,98362.0,0.09095742]
[1733363456904,0.57799636,98389.0,98361.0,0.0002]
[1733363457165,0.62669636,98389.0,98361.0,0.0002]
[1733363457826,0.62469636,98389.0,98361.0,0.0002]
[1733363458064,0.63369636,98389.0,98388.0,0.0027314]
[1733363458296,0.6386969,98389.0,98388.0,0.0027314]
[1733363458522,0.6296969,98389.0,98388.0,0.0017314]
[1733363458746,0.0775,98387.0,98355.0,0.00027428]
[1733363458957,0.203341,98357.0,98354.0,0.0017302]
[1733363459403,0.0775,98367.0,98354.0,0.0017302]
[1733363459404,0.203335,98360.0,98354.0,0.0017302]
[1733363459625,0.203335,98360.0,98354.0,0.02797355]
[1733363460285,0.203331,98362.0,98354.0,0.02805025]
[1733363460530,0.203325,98365.0,98354.0,0.02805025]
[1733363460754,0.203325,98365.0,98354.0,0.03005025]
[1733363460968,0.203333,98361.0,98354.0,0.03305025]
[1733363461206,0.203333,98361.0,98354.0,0.03005025]
[1733363461644,0.02075578,98366.0,98354.0,0.02805025]
[1733363461887,0.203335,98360.0,98354.0,0.03005025]
[1733363462123,0.203345,98355.0,98354.0,0.03005025]
[1733363462351,0.203345,98355.0,98354.0,0.0038069]
[1733363462352,0.22870431,98355.0,98354.0,0.0038069]
[1733363462574,0.31080431,98355.0,98354.0,0.0038069]
[1733363463265,0.31080431,98355.0,98354.0,0.0018069]
[1733363464256,0.31080431,98355.0,98354.0,0.0038069]
[1733363464496,0.31180431,98355.0,98354.0,0.0068069]
[1733363464763,0.31180431,98355.0,98354.0,0.0018069]
[1733363464764,0.31080431,98355.0,98354.0,0.0018069]
[1733363464980,0.31080431,98355.0,98354.0,0.0028069]
[1733363466364,0.4155169,98355.0,98354.0,0.0028069]
[1733363467571,0.4155169,98355.0,98354.0,0.0018069]
[1733363468047,0.31180431,98355.0,98354.0,0.0018069]
[1733363471573,0.5665169,98355.0,98354.0,0.0018069]
[1733363472032,0.58548761,98355.0,98354.0,0.0018069]
[1733363472958,0.6079495,98355.0,98354.0,0.0018069]
[1733363473450,0.58897879,98355.0,98354.0,0.0018069]
[1733363473692,0.6079572,98355.0,98354.0,0.0018069]
[1733363474391,0.6553572,98355.0,98354.0,0.0018069]
[1733363475277,0.68571735,98355.0,98354.0,0.0018069]
[1733363476183,0.67971735,98355.0,98354.0,0.0018069]
[1733363476406,0.203371,98342.0,98341.0,0.0019314]
[1733363476625,0.203371,98342.0,98341.0,0.00210604]
[1733363477574,0.203371,98342.0,98341.0,0.00510604]
[1733363477575,0.22873031,98342.0,98341.0,0.00510604]
[1733363477792,0.204371,98342.0,98341.0,0.00510604]
[1733363478018,0.001,98342.0,98341.0,0.00510604]
[1733363478479,0.001,98342.0,98341.0,0.00910604]
[1733363479377,0.204371,98342.0,98341.0,0.00910604]
[1733363480340,0.001,98342.0,98341.0,0.00910604]
[1733363481972,0.02635931,98342.0,98341.0,0.00910604]
[1733363482178,0.10445931,98342.0,98341.0,0.00910604]
[1733363483570,0.12343604,98342.0,98341.0,0.00910604]
[1733363483804,0.04533604,98342.0,98341.0,0.00910604]
[1733363484035,0.001,98342.0,98341.0,0.00910604]
[1733363484259,0.204371,98342.0,98341.0,0.00910604]
[1733363484517,0.001,98342.0,98341.0,0.00910604]
[1733363484993,0.01998808,98342.0,98341.0,0.00910604]
[1733363485682,0.001,98342.0,98341.0,0.00910604]
[1733363486605,0.001,98342.0,98341.0,0.14514826]
[1733363486822,0.001,98342.0,98341.0,0.34455246]
[1733363487341,0.001,98342.0,98341.0,0.09998415]
[1733363487565,0.001,98342.0,98341.0,0.00910604]
[1733363487795,0.001,98342.0,98341.0,0.48102867]
[1733363488269,0.001,98342.0,98341.0,0.30304308]
[1733363488496,0.001,98342.0,98341.0,0.4119115]
[1733363488737,0.001,98342.0,98341.0,0.3447115]
[1733363489407,0.001,98342.0,98341.0,0.3407115]
[1733363489672,0.0017306,98354.0,98341.0,0.3377115]
[1733363489907,0.0017306,98354.0,98352.0,0.09094378]
[1733363490418,0.0017306,98354.0,98350.0,0.13641567]
[1733363490419,0.0017306,98354.0,98353.0,0.13641567]
[1733363490667,0.0017306,98354.0,98352.0,0.34936945]
[1733363490886,0.0017306,98354.0,98353.0,0.44877118]
[1733363491143,0.02282031,98368.0,98354.0,0.244016]
[1733363491389,0.02282031,98368.0,98353.0,0.44877118]
[1733363491390,0.20332,98367.0,98366.0,0.09091479]
[1733363491608,0.02282031,98368.0,98365.0,0.09091479]
[1733363492045,0.02282031,98368.0,98358.0,0.22726068]
[1733363492046,0.20332,98367.0,98353.0,0.06894198]
[1733363492292,0.203311,98371.0,98365.0,0.09090012]
[1733363492526,0.02282031,98372.0,98365.0,0.09090012]
[1733363492971,0.02282031,98372.0,98365.0,0.09190012]
[1733363493492,0.203314,98370.0,98365.0,0.09190012]
[1733363494185,0.203314,98370.0,98365.0,0.11443438]
[1733363494437,0.203314,98370.0,98365.0,0.11343438]
[1733363494658,0.203303,98375.0,98365.0,0.02253426]
[1733363495124,0.203303,98375.0,98365.0,0.09090012]
[1733363495384,0.22612331,98375.0,98365.0,0.09090012]
[1733363495654,0.02282031,98383.0,98370.0,0.121987]
[1733363495904,0.0499,98399.0,98374.0,0.121982]
[1733363495905,0.20328,98386.0,98374.0,0.121982]
[1733363496147,0.0813,98393.0,98374.0,0.121982]
[1733363496148,0.203273,98390.0,98376.0,0.21288012]
[1733363496439,0.20328,98386.0,98381.0,0.09090012]
[1733363497124,0.02282031,98387.0,98381.0,0.09090012]
[1733363497421,0.0813,98393.0,98381.0,0.09090012]
[1733363497422,0.0813,98393.0,98381.0,0.09107476]
[1733363497661,0.203266,98394.0,98383.0,0.09090012]
[1733363497662,0.203264,98394.0,98383.0,0.09090012]
[1733363497912,0.002,98386.0,98383.0,0.09090012]
[1733363498395,0.004,98386.0,98384.0,0.13635019]
[1733363498630,0.004,98386.0,98385.0,0.09082552]
[1733363498874,0.004,98386.0,98383.0,0.13635019]
[1733363499113,0.002,98386.0,98383.0,0.13635019]
[1733363499360,0.002,98386.0,98381.0,0.20431445]
[1733363499361,0.203266,98393.0,98384.0,0.0908022]
[1733363499886,0.203266,98393.0,98385.0,0.004]
[1733363500133,0.04355095,98395.0,98384.0,0.0908022]
[1733363500134,0.02282031,98395.0,98384.0,0.0908022]
[1733363500372,0.02282031,98397.0,98384.0,0.0908022]
[1733363501092,0.203272,98391.0,98384.0,0.0908022]
[1733363501336,0.0798,98401.0,98383.0,0.002]
[1733363501337,0.203283,98385.0,98383.0,0.002]
[1733363501820,0.02282031,98387.0,98381.0,0.00017464]
[1733363501821,0.203285,98384.0,98381.0,0.00017464]
[1733363502054,0.20128499,98384.0,98381.0,0.00017464]
[1733363502789,0.20128499,98384.0,98383.0,0.005]
[1733363503024,0.27798499,98384.0,98383.0,0.001]
[1733363504217,0.27798499,98384.0,98381.0,0.00217464]
[1733363504480,0.27798499,98384.0,98381.0,0.00317464]
[1733363504994,0.48126999,98384.0,98381.0,0.00017464]
[1733363505246,0.48226999,98384.0,98381.0,0.00017464]
[1733363505493,0.28398499,98384.0,98381.0,0.00017464]
[1733363505741,0.20228499,98384.0,98381.0,0.00017464]
[1733363506253,0.001,98384.0,98381.0,0.00017464]
[1733363506473,0.20327,98391.0,98381.0,0.00017464]
[1733363506722,0.001,98384.0,98381.0,0.00017464]
[1733363507671,0.204286,98384.0,98381.0,0.00017464]
[1733363507950,0.2060162,98384.0,98381.0,0.00017464]
[1733363508190,0.4083022,98384.0,98381.0,0.00017464]
[1733363508430,0.4083022,98384.0,98381.0,0.00117464]
[1733363508678,0.2050162,98384.0,98381.0,0.00117464]
[1733363508916,0.2050162,98384.0,98381.0,0.00017464]
[1733363509412,0.2050162,98384.0,98381.0,0.00117464]
[1733363510601,0.2050162,98384.0,98381.0,0.00017464]
[1733363510848,0.2050162,98384.0,98381.0,0.00117464]
[1733363511104,0.02282031,98382.0,98381.0,0.00117464]
[1733363512063,0.02282031,98382.0,98381.0,0.00017464]
[1733363512512,0.02582031,98382.0,98381.0,0.00017464]
[1733363512791,0.02582031,98382.0,98381.0,0.00117464]
[1733363513244,0.02982031,98382.0,98381.0,0.00117464]
[1733363514005,0.02982031,98382.0,98381.0,0.00017464]
[1733363514262,0.03182031,98382.0,98381.0,0.00017464]
[1733363514757,0.02982031,98382.0,98381.0,0.00017464]
[1733363515016,0.02282031,98382.0,98381.0,0.00017464]
[1733363515291,0.02682031,98382.0,98381.0,0.00017464]
[1733363515995,0.02382031,98382.0,98381.0,0.00017464]
[1733363516465,0.02782031,98382.0,98381.0,0.00017464]
[1733363516909,0.02682031,98382.0,98381.0,0.00017464]
[1733363517390,0.02882031,98382.0,98381.0,0.00017464]
[1733363519020,0.006,98382.0,98381.0,0.00017464]
[1733363521463,0.006,98382.0,98381.0,0.00103964]
[1733363523136,0.006,98382.0,98381.0,0.10575223]
[1733363523607,0.004,98382.0,98381.0,0.10575223]
[1733363523846,0.0017302,98384.0,98381.0,0.57669736]
[1733363524079,0.0017302,98384.0,98381.0,0.2458246]
[1733363524320,0.0017302,98384.0,98381.0,0.20048091]
[1733363524566,0.0017302,98384.0,98383.0,0.22286468]
[1733363524807,0.0017302,98384.0,98383.0,0.22286636]
[1733363525041,0.0017302,98384.0,98383.0,0.132136]
[1733363526011,0.0017302,98384.0,98383.0,0.139136]
[1733363526012,0.0027302,98384.0,98383.0,0.139136]
[1733363526247,0.0027302,98384.0,98383.0,0.27520837]
[1733363526484,0.0027302,98384.0,98383.0,0.007]
[1733363526710,0.0027302,98384.0,98383.0,0.34191077]
[1733363527241,0.0017302,98384.0,98383.0,0.33891077]
[1733363527478,0.0027302,98384.0,98383.0,0.10175646]
[1733363527715,0.0027302,98384.0,98383.0,0.011]
[1733363528234,0.0027302,98384.0,98383.0,0.10175646]
[1733363528467,0.0027302,98384.0,98383.0,0.011]
[1733363530000,0.0027302,98384.0,98383.0,0.19241301]
[1733363530251,0.0027302,98384.0,98383.0,0.011]
[1733363530507,0.0027302,98384.0,98383.0,0.23800438]
[1733363530784,0.0027302,98384.0,98383.0,0.5733012]
[1733363531021,0.0027302,98384.0,98383.0,0.57330048]
[1733363531271,0.0027302,98384.0,98383.0,0.56330048]
[1733363531519,0.0027302,98384.0,98383.0,0.33621456]
[1733363532515,0.0807302,98384.0,98383.0,0.33621456]
[1733363533013,0.0807302,98384.0,98383.0,0.33652297]
[1733363533298,0.0807302,98384.0,98383.0,0.51829461]
[1733363533511,0.0807302,98384.0,98383.0,0.51836049]
[1733363533749,0.0027302,98384.0,98383.0,0.51836049]
[1733363533990,0.0027302,98384.0,98383.0,0.51834822]
[1733363534233,0.0027302,98384.0,98383.0,0.44123556]
[1733363534476,0.0027302,98384.0,98383.0,0.4899297]
[1733363535211,0.0017298,98400.0,98383.0,0.4899297]
[1733363535430,0.0017298,98400.0,98397.0,0.2271791]
[1733363535658,0.0017298,98400.0,98399.0,0.132115]
[1733363535897,0.0017298,98400.0,98399.0,0.33551711]
[1733363536405,0.0017298,98400.0,98398.0,0.3592951]
[1733363536635,0.0017298,98400.0,98399.0,0.33551711]
[1733363537334,0.0027298,98400.0,98399.0,0.33551711]
[1733363538018,0.0037298,98400.0,98399.0,0.33551711]
[1733363538788,0.0037298,98400.0,98399.0,0.33555166]
[1733363539007,0.0643298,98408.0,98399.0,0.33555166]
[1733363539225,0.0643298,98408.0,98405.0,0.09090439]
[1733363539451,0.0643298,98408.0,98406.0,0.09090439]
[1733363540138,0.0663298,98408.0,98407.0,0.09090439]
[1733363540614,0.0713298,98408.0,98407.0,0.09090439]
[1733363540864,0.0663298,98408.0,98407.0,0.09090439]
[1733363541366,0.0713298,98408.0,98407.0,0.09090439]
[1733363541595,0.0643298,98408.0,98407.0,0.09090439]
[1733363541839,0.0693298,98408.0,98407.0,0.09090439]
[1733363542072,0.0713298,98408.0,98407.0,0.09090439]
[1733363542370,0.0713298,98408.0,98406.0,0.09090439]
[1733363542602,0.0693298,98408.0,98406.0,0.09090439]
[1733363542855,0.0713298,98408.0,98406.0,0.09090439]
[1733363543317,0.0693298,98408.0,98406.0,0.09089074]
[1733363543593,0.0713298,98408.0,98406.0,0.09089074]
[1733363543796,0.0663298,98408.0,98406.0,0.09089074]
[1733363544050,0.0703298,98408.0,98406.0,0.09089074]
[1733363544299,0.203237,98407.0,98406.0,0.09089074]
[1733363544544,0.203237,98407.0,98404.0,0.02032927]
[1733363544545,0.0703298,98408.0,98405.0,0.09089074]
[1733363545245,0.0651948,98408.0,98405.0,0.09089074]
[1733363545715,0.006,98407.0,98405.0,0.09089074]
[1733363545944,0.209238,98407.0,98405.0,0.09089074]
[1733363546218,0.27176131,98405.0,98403.0,0.09089074]
[1733363546456,0.02282031,98398.0,98395.0,0.09089074]
[1733363546713,0.02282031,98398.0,98379.0,0.74239275]
[1733363546714,0.22608831,98392.0,98391.0,0.09089074]
[1733363546936,0.22608831,98392.0,98389.0,0.09089074]
[1733363546937,0.30448831,98392.0,98389.0,0.09089074]
[1733363547166,0.203276,98388.0,98387.0,0.09089074]
[1733363548827,0.203276,98388.0,98383.0,0.00173]
[1733363548828,0.22609631,98388.0,98383.0,0.18351148]
[1733363549059,0.203283,98385.0,98384.0,0.09096129]
[1733363549323,0.203283,98385.0,98383.0,0.00173]
[1733363549324,0.10442031,98384.0,98383.0,0.00173]
[1733363549826,0.10442031,98384.0,98369.0,0.13642807]
[1733363549827,0.10492031,98370.0,98369.0,0.13642807]
[1733363550161,0.10492031,98370.0,98365.0,0.18264658]
[1733363550162,0.02282031,98366.0,98365.0,0.31907465]
[1733363550435,0.30824231,98366.0,98365.0,0.0008651]
[1733363551120,0.4069549,98366.0,98365.0,0.0008651]
[1733363551583,0.4069549,98366.0,98365.0,0.0018651]
[1733363552505,0.4069549,98366.0,98365.0,0.0028651]
[1733363552946,0.42739809,98366.0,98365.0,0.0028651]
[1733363553167,0.47269809,98366.0,98365.0,0.0028651]
[1733363553892,0.47269809,98366.0,98341.0,0.0019314]
[1733363553893,0.01682031,98342.0,98341.0,0.0019314]
[1733363554122,0.14092031,98342.0,98341.0,0.0019314]
[1733363554831,0.14092031,98342.0,98341.0,0.02237474]
[1733363555073,0.14092031,98342.0,98341.0,0.0019314]
[1733363555354,0.14092031,98342.0,98341.0,0.00410614]
[1733363556350,0.14092031,98342.0,98341.0,0.00810614]
[1733363558304,0.16154552,98342.0,98341.0,0.00810614]
[1733363558798,0.11364552,98342.0,98341.0,0.00810614]
[1733363559023,0.09682521,98342.0,98341.0,0.00810614]
[1733363559250,0.11364552,98342.0,98341.0,0.00810614]
[1733363562313,0.21835811,98342.0,98341.0,0.00810614]
[1733363562759,0.21735811,98342.0,98341.0,0.00810614]
[1733363563455,0.26495811,98342.0,98341.0,0.00810614]
[1733363563689,0.41495811,98342.0,98341.0,0.00810614]
[1733363563921,0.353373,98341.0,98339.0,0.0015767]
[1733363564160,0.25471259,98340.0,98339.0,0.0015767]
[1733363564377,0.2715329,98340.0,98339.0,0.0015767]
[1733363564888,0.2715329,98340.0,98335.0,0.02]
[1733363564889,0.556756,98339.0,98335.0,0.02]
[1733363565126,0.01682031,98336.0,98335.0,0.02]
[1733363565431,0.1215329,98336.0,98335.0,0.02]
[1733363565905,0.1987329,98336.0,98335.0,0.02]
[1733363566159,0.1927329,98336.0,98335.0,0.021]
[1733363566631,0.1927329,98336.0,98335.0,0.022]
[1733363566632,0.2017329,98336.0,98335.0,0.022]
[1733363567593,0.2017329,98336.0,98335.0,0.021]
[1733363568078,0.3577329,98336.0,98335.0,0.021]
[1733363568311,0.3577329,98336.0,98329.0,6e-05]
[1733363568312,0.21421631,98330.0,98329.0,6e-05]
[1733363568539,0.5957289,98330.0,98329.0,6e-05]
[1733363569025,0.280713,98322.0,98303.0,0.0008656]
[1733363569285,0.38542559,98322.0,98303.0,0.0008656]
[1733363570202,0.3962459,98322.0,98303.0,0.0008656]
[1733363570476,0.3992459,98322.0,98303.0,0.0008656]
[1733363571457,0.3992459,98322.0,98321.0,0.0010654]
[1733363571954,0.4012459,98322.0,98321.0,0.0010654]
[1733363572687,0.42206932,98322.0,98321.0,0.0010654]
[1733363578682,0.30653642,98322.0,98321.0,0.0010654]
[1733363578901,0.31735673,98322.0,98321.0,0.0010654]
[1733363579143,0.24005673,98322.0,98321.0,0.0010654]
[1733363579648,0.23505673,98322.0,98321.0,0.0010654]
[1733363579866,0.23805673,98322.0,98321.0,0.0010654]
[1733363580547,0.24005673,98322.0,98321.0,0.0010654]
[1733363581044,0.23705673,98322.0,98321.0,0.0010654]
[1733363581525,0.41916932,98322.0,98321.0,0.0010654]
[1733363581991,0.42016932,98322.0,98321.0,0.0010654]
[1733363582658,0.24225765,98322.0,98303.0,0.0008656]
[1733363582877,0.20345,98304.0,98303.0,0.0008656]
[1733363583105,0.21427031,98304.0,98303.0,0.0008656]
[1733363584329,0.28987031,98304.0,98303.0,0.0008656]
[1733363584564,0.20345,98304.0,98303.0,0.0008656]
[1733363585279,0.20445,98304.0,98303.0,0.0098656]
[1733363586025,0.001,98304.0,98303.0,0.0048656]
[1733363586267,0.21426931,98305.0,98303.0,0.0048656]
[1733363586501,0.001,98304.0,98303.0,0.0048656]
[1733363586982,0.001,98304.0,98303.0,0.0008656]
[1733363587226,0.01082031,98308.0,98303.0,0.0008656]
[1733363587446,0.001,98304.0,98303.0,0.0008656]
[1733363588133,0.203444,98307.0,98303.0,0.0008656]
[1733363588870,0.01082031,98308.0,98303.0,0.0008656]
[1733363589104,0.001,98305.0,98303.0,0.0008656]
[1733363589340,0.01082031,98308.0,98303.0,0.0008656]